[Event "Croatian junior league 2021"]
[Site "Rabac"]
[Date "2021.04.09"]
[Round "7.15"]
[White "Jakovic, Roko"]
[Black "Juric, Ester"]
[Result "1/2-1/2"]
[ECO "E20"]
[WhiteElo "1846"]
[BlackElo "1587"]
[Annotator "NA RC"]
[PlyCount "150"]
[EventDate "2021.04.06"]
[EventType "swiss"]
[EventCountry "CRO"]
[SourceTitle "playchess.com"]
[Source "ChessBase"]
[SourceQuality "1"]
[TimeControl "5400+30"]

1. d4 {[%emt 0:00:00]} Nf6 {[%emt 0:00:00]} 2. c4 {[%emt 0:00:00]} e6 {[%emt 0:00:00]} 3. Nc3 {[%emt 0:00:12]} Bb4 {[%emt 0:00:15]} 4. g3 {[%emt 0:00:27]} O-O {[%emt 0:00:19]} 5. Bg2 {[%emt 0:00:05]} Bxc3+ {[%emt 0:00:17]} 6. bxc3 {[%emt 0:00:05]} d6 {[%emt 0:00:14]} 7. Rb1 {[%emt 0:04:01]} Nc6 {[%emt 0:02:42]} 8. Bg5 {[%emt 0:05:26]} h6 {[%emt 0:06:43]} 9. Bxf6 {[%emt 0:02:58]} Qxf6 {[%emt 0:00:11]} 10. Nf3 {[%emt 0:03:59]} Rb8 {[%emt 0:06:17]} 11. O-O {[%emt 0:06:58]} b6 {[%emt 0:05:38]} 12. Nd2 {[%emt 0:08:29]} Bb7 {[%emt 0:04:17]} 13. f4 {[%emt 0:02:09]} Qe7 {[%emt 0:03:16]} 14. e4 {[%emt 0:02:18]} Rfd8 {[%emt 0:07:07]} 15. Qg4 {[%emt 0:10:25]} Qe8 {[%emt 0:02:17]} 16. f5 {[%emt 0:04:39]} exf5 {[%emt 0:03:51]} 17. Qxf5 {[%emt 0:00:54]} Ne7 {[%emt 0:02:13]} 18. Qf2 {[%emt 0:02:52]} Ng6 {[%emt 0:04:30]} 19. Rbe1 {[%emt 0:01:25]} Qd7 {[%emt 0:02:27]} 20. h4 {[%emt 0:02:08]} Rf8 {[%emt 0:01:36]} 21. Kh2 {[%emt 0:02:58]} Bc8 {[%emt 0:06:16]} 22. e5 {[%emt 0:04:47]} dxe5 {[%emt 0:02:12]} 23. dxe5 {[%emt 0:01:15]} (23. h5 $11 Ne7 24. Rxe5) 23... Qe6 {[%emt 0:03:15]} 24. Bd5 {[%emt 0:11:03]} Qe7 {[%emt 0:00:25]} 25. Qe3 {[%emt 0:03:59]} Be6 {[%emt 0:03:06]} 26. h5 {[%emt 0:00:28]} Nh8 {[%emt 0:00:07]} 27. Qf4 {[%emt 0:07:02]} Rbd8 {[%emt 0:02:35]} 28. Ne4 {[%emt 0:01:36]} Kh7 {[%emt 0:05:31] [#]} 29. Rd1 $2 {[%emt 0:06:28]} (29. Nf6+ $1 $18 {[%mdl 512]} gxf6 30. exf6) 29... Bxd5 {[%emt 0:02:40]} 30. cxd5 {[%emt 0:00:05]} Rfe8 {[%emt 0:00:07]} 31. Qf5+ {[%emt 0:02:27]} Kg8 {[%emt 0:00:59]} 32. d6 {[%emt 0:01:46]} cxd6 {[%emt 0:00:52]} 33. Rxd6 {[%emt 0:00:27]} Rxd6 {[%emt 0:00:17]} 34. Nxd6 {[%emt 0:01:08]} Rd8 {[%emt 0:01:01]} 35. Nc4 {[%emt 0:01:34]} b5 {[%emt 0:06:38]} 36. Nd6 {[%emt 0:00:50]} a6 {[%emt 0:00:06]} 37. Qf4 {[%emt 0:00:12]} Qe6 {[%emt 0:01:34]} 38. Rf2 {[%emt 0:00:19]} Rd7 {[%emt 0:02:53]} 39. Qf5 $11 {[%emt 0:00:47]} ({Better is} 39. Nf5 $14 Rc7 40. Qd4) 39... Qxf5 {[%emt 0:01:18]} 40. Nxf5 {[%emt 0:00:25]} Rc7 {[%emt 0:00:22]} 41. Rf3 {[%emt 0:00:25]} Rc5 {[%emt 0:00:28]} 42. Ne7+ {[%emt 0:00:51]} Kf8 {[%emt 0:00:37]} 43. Ng6+ {[%emt 0:00:19]} Nxg6 {[%emt 0:00:13]} 44. hxg6 {[%emt 0:00:02]} Rc7 {[%emt 0:01:17]} 45. Kh3 {[%emt 0:01:11]} Ke8 {[%emt 0:00:31]} 46. gxf7+ {[%emt 0:00:34]} Rxf7 {[%emt 0:00:01]} 47. Rd3 {[%emt 0:00:29]} Rd7 {[%emt 0:00:21]} 48. Re3 {[%emt 0:00:22]} Ke7 {[%emt 0:00:52]} 49. Kg4 {[%emt 0:00:26]} g6 {[%emt 0:00:20]} 50. Rf3 {[%emt 0:00:23]} Ke6 {[%emt 0:06:46]} 51. Rf6+ {[%emt 0:00:14]} Kxe5 {[%emt 0:00:02]} 52. Rxg6 {[%emt 0:00:28]} Rd3 {[%emt 0:01:12]} 53. Rxh6 {[%emt 0:00:20]} Rxc3 {[%emt 0:00:00]} 54. Rxa6 {[%emt 0:00:12]} b4 {[%emt 0:00:48]} 55. Rb6 {[%emt 0:00:55]} Ra3 {[%emt 0:00:14]} 56. Rxb4 {[%emt 0:00:15]} Rxa2 {[%emt 0:00:02]} 57. Rf4 {[%emt 0:00:38]} Ra8 {[%emt 0:01:00]} 58. Kh4 {[%emt 0:01:11]} Rh8+ {[%emt 0:00:15]} 59. Kg4 {[%emt 0:00:16]} Rg8+ {[%emt 0:00:04]} 60. Kf3 {[%emt 0:00:33]} Ra8 {[%emt 0:00:08]} 61. Rb4 {[%emt 0:00:36]} Rf8+ {[%emt 0:00:40]} 62. Ke3 {[%emt 0:00:31]} Rg8 {[%emt 0:00:15]} 63. Rb5+ {[%emt 0:00:04]} Kf6 {[%emt 0:00:08]} 64. Kf4 {[%emt 0:00:06]} Ra8 {[%emt 0:00:53]} 65. Rb6+ {[%emt 0:00:07]} Kg7 {[%emt 0:00:08]} 66. g4 {[%emt 0:00:44]} Ra4+ {[%emt 0:00:31]} 67. Kg5 {[%emt 0:00:47]} Ra5+ {[%emt 0:00:04]} 68. Kh4 {[%emt 0:00:10]} Ra4 {[%emt 0:00:15]} 69. Kh5 {[%emt 0:00:15]} Ra5+ {[%emt 0:00:06]} 70. g5 {[%emt 0:00:12]} Ra1 {[%emt 0:00:09]} 71. Rb7+ {[%emt 0:00:05]} Kg8 {[%emt 0:01:41]} 72. Kh6 {[%emt 0:00:17]} Ra6+ {[%emt 0:00:57]} 73. g6 {[%emt 0:00:09]} Ra8 {[%emt 0:01:15]} 74. Rg7+ {[%emt 0:00:58]} Kh8 {[%emt 0:03:06]} 75. Rb7 {[%emt 0:00:47]} Kg8 {[%emt 0:00:00]} 1/2-1/2

[Event "Croatian junior league 2021"]
[Site "Rabac"]
[Date "2021.04.09"]
[Round "7.20"]
[White "Hergotic, Mihael"]
[Black "Martic, Filip"]
[Result "0-1"]
[ECO "B23"]
[WhiteElo "1476"]
[BlackElo "1756"]
[Annotator "NA RC"]
[PlyCount "134"]
[EventDate "2021.04.06"]
[EventType "swiss"]
[EventCountry "CRO"]
[SourceTitle "playchess.com"]
[Source "ChessBase"]
[SourceQuality "1"]
[TimeControl "5400+30"]

1. e4 {[%emt 0:00:00]} c5 {[%emt 0:00:00]} 2. Nc3 {[%emt 0:00:07]} g6 {[%emt 0:00:53]} 3. f4 {[%emt 0:00:49]} Bg7 {[%emt 0:00:13]} 4. Nf3 {[%emt 0:00:24]} Nc6 {[%emt 0:02:03]} 5. Bc4 {[%emt 0:00:37]} e6 {[%emt 0:01:17]} 6. O-O {[%emt 0:00:45]} Nge7 {[%emt 0:00:55]} 7. d3 {[%emt 0:00:40]} O-O {[%emt 0:03:47]} 8. Qe1 {[%emt 0:01:33]} d5 {[%emt 0:03:11]} 9. Bb3 {[%emt 0:00:34]} Nd4 {[%emt 0:07:00]} 10. Nxd4 {[%emt 0:03:49]} cxd4 {[%emt 0:05:23]} 11. Ne2 {[%emt 0:06:32]} dxe4 {[%emt 0:01:05]} 12. dxe4 {[%emt 0:00:05]} b6 {[%emt 0:08:56]} 13. Bd2 {[%emt 0:08:54]} Ba6 {[%emt 0:04:18]} 14. Bb4 {[%emt 0:09:57]} Qc7 {[%emt 0:05:59]} 15. e5 {[%emt 0:06:13]} Rfd8 {[%emt 0:05:36]} 16. Bd6 {[%emt 0:01:32]} Qb7 {[%emt 0:04:15]} 17. g4 {[%emt 0:11:26]} Nc8 {[%emt 0:11:17]} 18. Bb4 {[%emt 0:00:03]} Bxe2 {[%emt 0:01:08]} 19. Qxe2 {[%emt 0:00:16]} a5 {[%emt 0:00:14]} 20. Be1 {[%emt 0:00:44]} Ne7 {[%emt 0:00:50]} 21. Bh4 {[%emt 0:00:08]} Rd7 {[%emt 0:03:41]} 22. Qf3 {[%emt 0:05:47]} Nd5 {[%emt 0:04:38]} 23. Rfd1 {[%emt 0:06:12]} Bf8 {[%emt 0:04:30]} 24. Bf2 {[%emt 0:02:37]} Ne3 {[%emt 0:02:28]} 25. Qxb7 {[%emt 0:00:17]} Rxb7 {[%emt 0:00:00]} 26. Bxe3 {[%emt 0:02:30]} dxe3 {[%emt 0:00:01]} 27. Kf1 {[%emt 0:00:17]} a4 {[%emt 0:02:13]} 28. Bc4 {[%emt 0:00:04]} b5 {[%emt 0:01:30]} 29. Be2 {[%emt 0:00:48]} Rc8 {[%emt 0:00:19]} 30. c3 {[%emt 0:01:11]} a3 {[%emt 0:00:36]} 31. bxa3 {[%emt 0:01:41]} Rxc3 {[%emt 0:00:31]} 32. Rd3 {[%emt 0:00:08]} Rxd3 {[%emt 0:00:29]} 33. Bxd3 {[%emt 0:00:03]} Bxa3 {[%emt 0:00:02]} 34. Rb1 {[%emt 0:00:18]} Rd7 {[%emt 0:02:09]} 35. Ke2 {[%emt 0:00:27]} Rd4 {[%emt 0:03:24]} 36. Kxe3 {[%emt 0:01:16]} Bc5 {[%emt 0:00:06]} 37. Rxb5 {[%emt 0:02:40]} Ba7 {[%emt 0:00:16]} 38. Rb8+ {[%emt 0:03:46]} Kg7 {[%emt 0:00:30]} 39. Ra8 {[%emt 0:00:02]} Ra4+ {[%emt 0:00:56]} 40. Kf3 {[%emt 0:00:03]} Rxa2 {[%emt 0:00:16]} 41. h3 {[%emt 0:00:45]} Rf2+ {[%emt 0:01:07]} 42. Kg3 {[%emt 0:02:00]} Be3 {[%emt 0:00:42]} 43. Ra4 {[%emt 0:00:52]} Rd2 {[%emt 0:00:48]} 44. Be4 {[%emt 0:04:42]} Bf2+ {[%emt 0:02:48]} 45. Kf3 {[%emt 0:01:19]} Bh4 {[%emt 0:00:25]} 46. g5 {[%emt 0:05:17]} h6 {[%emt 0:02:03]} 47. gxh6+ {[%emt 0:01:54]} Kxh6 {[%emt 0:00:02]} 48. Kg4 {[%emt 0:00:02]} Bf2 {[%emt 0:00:47]} 49. Rc4 {[%emt 0:02:36]} Be1 {[%emt 0:01:50]} 50. Ra4 {[%emt 0:01:46]} Rb2 {[%emt 0:00:19]} 51. Ra3 {[%emt 0:00:39]} Rb4 {[%emt 0:00:17]} 52. Kf3 {[%emt 0:00:13]} Bh4 {[%emt 0:00:28]} 53. Rd3 {[%emt 0:01:27]} g5 {[%emt 0:00:17]} 54. fxg5+ {[%emt 0:00:25]} Bxg5 {[%emt 0:00:02]} 55. Ra3 {[%emt 0:01:05]} Kg7 {[%emt 0:00:46]} 56. Bc2 {[%emt 0:00:54]} Rb5 {[%emt 0:00:45]} 57. Ke4 {[%emt 0:00:16]} Bc1 {[%emt 0:00:51]} 58. Rd3 {[%emt 0:00:45]} Bb2 {[%emt 0:00:12]} 59. Rg3+ {[%emt 0:00:14]} Kh6 {[%emt 0:00:21]} 60. Rb3 {[%emt 0:01:14]} Rxe5+ {[%emt 0:00:22]} 61. Kf4 {[%emt 0:00:01]} Bd4 {[%emt 0:00:33]} 62. Rd3 {[%emt 0:00:07]} Rf5+ {[%emt 0:00:43]} 63. Kg4 {[%emt 0:00:02]} Be5 {[%emt 0:00:38]} 64. Re3 {[%emt 0:01:42]} Rg5+ {[%emt 0:03:03]} 65. Kh4 {[%emt 0:00:02]} Bf6 {[%emt 0:00:14]} 66. Rf3 {[%emt 0:00:23]} Rg6+ {[%emt 0:00:24]} 67. Rxf6 {[%emt 0:00:41]} Rxf6 {[%emt 0:00:02]} 0-1

[Event "Croatian junior league 2021"]
[Site "Rabac"]
[Date "2021.04.09"]
[Round "7.23"]
[White "Vukojevic, Toni"]
[Black "Mijic, Karlo"]
[Result "1-0"]
[ECO "C78"]
[WhiteElo "1538"]
[BlackElo "1599"]
[Annotator "NA RC"]
[PlyCount "101"]
[EventDate "2021.04.06"]
[EventType "swiss"]
[EventCountry "CRO"]
[SourceTitle "playchess.com"]
[Source "ChessBase"]
[SourceQuality "1"]
[TimeControl "5400+30"]

1. e4 {[%emt 0:00:00]} e5 {[%emt 0:01:22]} 2. Nf3 {[%emt 0:00:00]} Nc6 {[%emt 0:00:04]} 3. Bb5 {[%emt 0:00:00]} a6 {[%emt 0:00:05]} 4. Ba4 {[%emt 0:00:00]} Nf6 {[%emt 0:00:05]} 5. d3 {[%emt 0:00:02]} b5 {[%emt 0:01:30]} 6. Bb3 {[%emt 0:00:06]} Bc5 {[%emt 0:00:08]} 7. O-O {[%emt 0:00:30]} O-O {[%emt 0:00:04]} 8. Be3 {[%emt 0:00:22]} Ba7 {[%emt 0:00:18]} 9. c3 {[%emt 0:00:15]} h6 {[%emt 0:01:00]} 10. Nbd2 {[%emt 0:00:37]} Re8 {[%emt 0:00:11]} 11. Re1 {[%emt 0:00:14]} Bb7 {[%emt 0:00:09]} 12. h3 {[%emt 0:00:40]} Bxe3 {[%emt 0:03:39]} 13. fxe3 {[%emt 0:00:15]} d6 {[%emt 0:02:01]} 14. Nf1 {[%emt 0:01:43]} Qd7 {[%emt 0:04:53]} 15. Ng3 {[%emt 0:00:58]} Rad8 {[%emt 0:00:13]} 16. Nh4 {[%emt 0:00:39]} Ne7 {[%emt 0:01:18]} 17. Nhf5 {[%emt 0:00:25]} Nxf5 {[%emt 0:00:59]} 18. Nxf5 {[%emt 0:00:05]} d5 {[%emt 0:00:11]} 19. Rf1 {[%emt 0:01:33]} dxe4 {[%emt 0:00:09]} 20. Nxh6+ {[%emt 0:00:07]} gxh6 {[%emt 0:05:27]} 21. Rxf6 {[%emt 0:00:06]} Bd5 {[%emt 0:18:47]} 22. Bxd5 {[%emt 0:02:36]} Qxd5 {[%emt 0:00:09]} 23. Qg4+ {[%emt 0:00:05]} Kf8 {[%emt 0:00:35]} 24. dxe4 {[%emt 0:01:33]} Qc5 {[%emt 0:00:15]} 25. Qf3 {[%emt 0:00:26]} Rd6 {[%emt 0:04:32]} 26. Rxf7+ {[%emt 0:00:30]} Kg8 {[%emt 0:00:02]} 27. Rf1 {[%emt 0:01:05]} Rg6 {[%emt 0:00:50]} 28. Kh1 {[%emt 0:04:24]} Qd6 {[%emt 0:01:48]} 29. Rf6 {[%emt 0:00:31]} Rxf6 {[%emt 0:02:54]} 30. Qxf6 {[%emt 0:00:06]} Re6 {[%emt 0:00:11]} 31. Qf7+ {[%emt 0:01:26]} Kh8 {[%emt 0:00:38]} 32. Qf8+ {[%emt 0:02:29]} Qxf8 {[%emt 0:00:03]} 33. Rxf8+ {[%emt 0:00:05]} Kg7 {[%emt 0:00:03]} 34. Rd8 {[%emt 0:00:06]} c5 {[%emt 0:00:55]} 35. Rd5 {[%emt 0:01:04]} c4 {[%emt 0:00:04]} 36. Kg1 {[%emt 0:00:17]} Kf6 {[%emt 0:00:04]} 37. Kf2 {[%emt 0:00:06]} h5 {[%emt 0:00:30]} 38. Kg3 {[%emt 0:00:44]} Kg5 {[%emt 0:00:04]} 39. h4+ {[%emt 0:00:23]} Kf6 {[%emt 0:00:06]} 40. Rd8 {[%emt 0:00:09]} Rb6 {[%emt 0:01:28]} 41. Rh8 {[%emt 0:00:40]} Rd6 {[%emt 0:00:13]} 42. Rh6+ {[%emt 0:00:14]} Ke7 {[%emt 0:00:04]} 43. Rxd6 {[%emt 0:00:06]} Kxd6 {[%emt 0:00:05]} 44. Kf3 {[%emt 0:00:05]} a5 {[%emt 0:00:09]} 45. g4 {[%emt 0:00:07]} b4 {[%emt 0:01:01]} 46. gxh5 {[%emt 0:00:08]} Ke6 {[%emt 0:00:03]} 47. Kg4 {[%emt 0:00:18]} Kf6 {[%emt 0:00:21]} 48. h6 {[%emt 0:00:07]} Kg6 {[%emt 0:00:04]} 49. h7 {[%emt 0:00:05]} Kxh7 {[%emt 0:00:03]} 50. Kf5 {[%emt 0:00:04]} b3 {[%emt 0:00:29]} 51. a3 {[%emt 0:00:12]} 1-0

[Event "Croatian junior league 2021"]
[Site "Rabac"]
[Date "2021.04.09"]
[Round "8.1"]
[White "Karlusic, Luka"]
[Black "Levacic, Matej"]
[Result "0-1"]
[ECO "E52"]
[WhiteElo "2047"]
[BlackElo "2144"]
[Annotator "NA"]
[PlyCount "120"]
[EventDate "2021.04.06"]
[EventType "swiss"]
[EventCountry "CRO"]
[SourceTitle "playchess.com"]
[Source "ChessBase"]
[SourceQuality "1"]
[TimeControl "5400+30"]

1. d4 {[%emt 0:00:00]} Nf6 {[%emt 0:02:50]} 2. c4 {[%emt 0:00:00]} e6 {[%emt 0:00:16]} 3. Nc3 {[%emt 0:00:00]} Bb4 {[%emt 0:00:07]} 4. e3 {[%emt 0:00:00]} O-O {[%emt 0:00:13]} 5. Bd3 {[%emt 0:00:02]} d5 {[%emt 0:00:40]} 6. Nf3 {[%emt 0:00:07]} b6 {[%emt 0:02:32]} 7. cxd5 {[%emt 0:00:43]} exd5 {[%emt 0:00:18]} 8. O-O {[%emt 0:00:17]} Ba6 {[%emt 0:00:16]} 9. Bxa6 {[%emt 0:05:06]} Nxa6 {[%emt 0:00:08]} 10. Qa4 {[%emt 0:00:09]} Qc8 {[%emt 0:00:16]} 11. Ne5 {[%emt 0:01:20]} Bd6 {[%emt 0:02:43]} 12. f4 {[%emt 0:07:27]} c5 {[%emt 0:03:21]} 13. Nb5 {[%emt 0:04:00]} Be7 {[%emt 0:04:36]} 14. Bd2 {[%emt 0:09:18]} Ne4 {[%emt 0:01:20]} 15. Be1 {[%emt 0:01:35]} f6 {[%emt 0:08:50]} 16. Nd3 {[%emt 0:02:05]} Nc7 {[%emt 0:03:33]} 17. Nxc7 {[%emt 0:09:37]} Qxc7 {[%emt 0:00:09]} 18. Rc1 {[%emt 0:05:29]} Qb7 {[%emt 0:03:17]} 19. dxc5 {[%emt 0:11:00]} bxc5 {[%emt 0:02:14]} 20. b4 {[%emt 0:03:18]} c4 {[%emt 0:04:28]} 21. Nf2 {[%emt 0:00:45]} Nd6 {[%emt 0:02:06]} 22. Nd1 {[%emt 0:03:42]} Rfd8 {[%emt 0:08:08]} 23. a3 {[%emt 0:08:17]} Qb6 {[%emt 0:04:16]} 24. Bc3 {[%emt 0:02:37]} Nb5 {[%emt 0:03:40]} 25. Bb2 {[%emt 0:01:10]} a5 {[%emt 0:01:30]} 26. Qc2 {[%emt 0:02:19]} axb4 {[%emt 0:00:44]} 27. axb4 {[%emt 0:00:03]} Bxb4 {[%emt 0:01:02]} 28. Rf3 {[%emt 0:00:40]} Qe6 {[%emt 0:11:58]} 29. Rh3 {[%emt 0:03:01]} Qe4 {[%emt 0:01:14]} 30. Qxe4 {[%emt 0:00:27]} dxe4 {[%emt 0:00:07]} 31. Rh5 {[%emt 0:00:55]} Rab8 {[%emt 0:04:56]} 32. Nc3 {[%emt 0:00:59]} Bxc3 {[%emt 0:03:59]} 33. Bxc3 {[%emt 0:00:02]} Rd3 {[%emt 0:04:37]} 34. Bd4 {[%emt 0:00:11]} Nxd4 {[%emt 0:00:41]} 35. exd4 {[%emt 0:00:02]} Rxd4 {[%emt 0:02:47]} 36. Rc5 {[%emt 0:00:43]} e3 {[%emt 0:05:36]} 37. Kf1 {[%emt 0:00:08]} Rxf4+ {[%emt 0:00:12]} 38. Ke2 {[%emt 0:00:03]} Re8 {[%emt 0:01:05]} 39. Rf1 {[%emt 0:01:14]} Rxf1 {[%emt 0:00:27]} 40. Kxf1 {[%emt 0:00:01]} e2+ {[%emt 0:00:17]} 41. Ke1 {[%emt 0:00:02]} Re4 {[%emt 0:00:40]} 42. Rc7 {[%emt 0:00:02]} h6 {[%emt 0:01:14]} 43. h4 {[%emt 0:00:09]} h5 {[%emt 0:01:19]} 44. Rc5 {[%emt 0:00:18]} Kf7 {[%emt 0:00:10]} 45. Rxh5 {[%emt 0:00:09]} Ke6 {[%emt 0:00:58]} 46. Rh7 {[%emt 0:01:00]} g6 {[%emt 0:00:40]} 47. Rc7 {[%emt 0:00:35]} Kd5 {[%emt 0:00:19]} 48. g4 {[%emt 0:00:17]} Rxg4 {[%emt 0:00:19]} 49. h5 {[%emt 0:00:02]} gxh5 {[%emt 0:00:14]} 50. Kxe2 {[%emt 0:00:04]} h4 {[%emt 0:00:42]} 51. Ke3 {[%emt 0:00:27]} h3 {[%emt 0:00:39]} 52. Rh7 {[%emt 0:00:29]} Rg3+ {[%emt 0:00:09]} 53. Kd2 {[%emt 0:00:09]} f5 {[%emt 0:00:25]} 54. Rh4 {[%emt 0:00:16]} c3+ {[%emt 0:01:53]} 55. Kc2 {[%emt 0:00:03]} Ke5 {[%emt 0:00:14]} 56. Kd1 {[%emt 0:00:15]} f4 {[%emt 0:00:06]} 57. Rh8 {[%emt 0:00:17]} Ke4 {[%emt 0:00:16]} 58. Ke2 {[%emt 0:00:13]} Rg2+ {[%emt 0:00:18]} 59. Kf1 {[%emt 0:00:01]} c2 {[%emt 0:00:33]} 60. Rc8 {[%emt 0:00:06]} Rd2 {[%emt 0:00:23]} 0-1

[Event "Croatian junior league 2021"]
[Site "Rabac"]
[Date "2021.04.09"]
[Round "8.2"]
[White "Ljubicic, Mario"]
[Black "Novosel, Lovro"]
[Result "0-1"]
[ECO "B90"]
[WhiteElo "2036"]
[BlackElo "1997"]
[Annotator "NA"]
[PlyCount "162"]
[EventDate "2021.04.06"]
[EventType "swiss"]
[EventCountry "CRO"]
[SourceTitle "playchess.com"]
[Source "ChessBase"]
[SourceQuality "1"]
[TimeControl "5400+30"]

1. e4 {[%emt 0:01:09]} c5 {[%emt 0:00:00]} 2. Nf3 {[%emt 0:00:10]} d6 {[%emt 0:00:00]} 3. d4 {[%emt 0:00:05]} cxd4 {[%emt 0:00:19]} 4. Nxd4 {[%emt 0:00:04]} Nf6 {[%emt 0:00:12]} 5. Nc3 {[%emt 0:00:05]} a6 {[%emt 0:00:05]} 6. Be3 e5 {[%emt 0:00:17]} 7. Nb3 {[%emt 0:01:02]} Be6 {[%emt 0:00:24]} 8. f3 {[%emt 0:00:10]} Be7 {[%emt 0:00:37]} 9. Qd2 {[%emt 0:00:07]} O-O {[%emt 0:01:56]} 10. O-O-O {[%emt 0:00:52]} Nbd7 {[%emt 0:00:35]} 11. g4 {[%emt 0:00:10]} b5 {[%emt 0:00:50]} 12. Kb1 {[%emt 0:00:27]} b4 {[%emt 0:01:45]} 13. Nd5 {[%emt 0:04:06]} Bxd5 {[%emt 0:00:24]} 14. exd5 {[%emt 0:00:07]} Qc7 {[%emt 0:06:38]} 15. h4 {[%emt 0:02:55]} a5 {[%emt 0:02:14]} 16. h5 {[%emt 0:02:00]} Nb6 {[%emt 0:02:51]} 17. Bxb6 {[%emt 0:02:17]} Qxb6 {[%emt 0:00:09]} 18. g5 {[%emt 0:00:42]} Nd7 {[%emt 0:00:40]} 19. g6 {[%emt 0:01:18]} a4 {[%emt 0:00:49]} 20. Nc1 {[%emt 0:02:02]} Nc5 {[%emt 0:09:44]} 21. Bc4 {[%emt 0:04:38]} Bf6 {[%emt 0:05:44]} 22. Rdg1 {[%emt 0:05:24]} Ra7 {[%emt 0:03:38]} 23. h6 {[%emt 0:17:13]} fxg6 {[%emt 0:01:53]} 24. hxg7 {[%emt 0:00:29]} Rxg7 {[%emt 0:03:52]} 25. Rg2 {[%emt 0:14:17]} e4 {[%emt 0:12:37]} 26. f4 {[%emt 0:08:31]} a3 {[%emt 0:06:24]} 27. b3 {[%emt 0:07:23]} Re8 {[%emt 0:12:36]} 28. Qe3 {[%emt 0:05:49]} Qa7 {[%emt 0:06:41]} 29. Ne2 {[%emt 0:01:45]} Qe7 {[%emt 0:03:11]} 30. Rhg1 {[%emt 0:09:08]} Qd7 {[%emt 0:01:41]} 31. Qd2 {[%emt 0:03:25]} Qb7 {[%emt 0:01:56]} 32. Qe3 {[%emt 0:00:19]} Qc7 {[%emt 0:04:52]} 33. Rg3 {[%emt 0:04:52]} Na4 {[%emt 0:02:37]} 34. Bb5 {[%emt 0:01:04]} Rc8 {[%emt 0:00:07]} 35. Bc6 {[%emt 0:01:12]} Nc5 {[%emt 0:00:30]} 36. Qd2 {[%emt 0:00:51]} Rb8 {[%emt 0:02:13]} 37. Qe3 {[%emt 0:00:44]} Qf7 {[%emt 0:00:27]} 38. Nd4 {[%emt 0:01:14]} Bxd4 {[%emt 0:00:24]} 39. Qxd4 {[%emt 0:00:13]} Qxf4 {[%emt 0:00:08]} 40. Rg4 {[%emt 0:00:17]} Qf3 {[%emt 0:02:50]} 41. R4g3 {[%emt 0:00:43]} Qf7 {[%emt 0:00:34]} 42. R3g2 {[%emt 0:00:44]} Qe7 {[%emt 0:01:32]} 43. Rf2 {[%emt 0:00:51]} Rf7 {[%emt 0:00:23]} 44. Re2 {[%emt 0:00:20]} Qf6 {[%emt 0:00:20]} 45. Qxf6 {[%emt 0:00:35]} Rxf6 {[%emt 0:00:01]} 46. Kc1 {[%emt 0:00:11]} Rbf8 {[%emt 0:00:11]} 47. Kd2 {[%emt 0:00:18]} Rf2 {[%emt 0:00:20]} 48. Rge1 {[%emt 0:00:14]} Kg7 {[%emt 0:00:29]} 49. Bb5 {[%emt 0:00:55]} g5 {[%emt 0:01:23]} 50. c3 {[%emt 0:00:05]} Rxe2+ {[%emt 0:01:12]} 51. Rxe2 {[%emt 0:00:12]} bxc3+ {[%emt 0:00:22]} 52. Kxc3 {[%emt 0:00:03]} Rb8 {[%emt 0:03:15]} 53. Bc6 {[%emt 0:01:14]} Nd3 {[%emt 0:01:02]} 54. Rxe4 {[%emt 0:00:14]} Nc1 {[%emt 0:00:37]} 55. Re7+ {[%emt 0:01:24]} Kf6 {[%emt 0:00:21]} 56. Ra7 {[%emt 0:00:33]} Nxa2+ {[%emt 0:00:05]} 57. Kc2 {[%emt 0:00:22]} Nb4+ {[%emt 0:00:11]} 58. Kc3 {[%emt 0:00:15]} Nxc6 {[%emt 0:00:20]} 59. dxc6 {[%emt 0:00:02]} Rb6 {[%emt 0:00:12]} 60. c7 {[%emt 0:01:25]} Rc6+ {[%emt 0:00:08]} 61. Kd4 {[%emt 0:00:28]} a2 {[%emt 0:00:17]} 62. Kd5 {[%emt 0:00:20]} Rxc7 {[%emt 0:00:13]} 63. Rxa2 {[%emt 0:00:04]} Rb7 {[%emt 0:00:10]} 64. Rh2 {[%emt 0:01:19]} Rxb3 {[%emt 0:00:48]} 65. Kc4 {[%emt 0:00:19]} Re3 {[%emt 0:00:18]} 66. Kd4 {[%emt 0:00:09]} Re7 {[%emt 0:00:08]} 67. Rh6+ {[%emt 0:00:05]} Kf5 {[%emt 0:00:14]} 68. Rxd6 {[%emt 0:00:05]} h5 {[%emt 0:00:05]} 69. Kd3 {[%emt 0:00:11]} h4 {[%emt 0:00:17]} 70. Kd2 {[%emt 0:00:32]} g4 {[%emt 0:00:18]} 71. Rd5+ {[%emt 0:00:08]} Kf4 {[%emt 0:00:05]} 72. Rd4+ {[%emt 0:00:04]} Kf3 {[%emt 0:00:05]} 73. Rd3+ {[%emt 0:00:04]} Kf2 {[%emt 0:00:05]} 74. Rd4 {[%emt 0:00:03]} g3 {[%emt 0:00:14]} 75. Rf4+ {[%emt 0:00:22]} Kg1 {[%emt 0:00:06]} 76. Rxh4 {[%emt 0:00:02]} g2 {[%emt 0:00:04]} 77. Rh5 {[%emt 0:00:21]} Kf2 {[%emt 0:00:33]} 78. Rf5+ {[%emt 0:00:12]} Kg3 {[%emt 0:00:04]} 79. Rg5+ {[%emt 0:00:03]} Kf3 {[%emt 0:00:05]} 80. Rg6 {[%emt 0:01:08]} Re4 {[%emt 0:00:56]} 81. Kd3 {[%emt 0:02:50]} Rg4 {[%emt 0:00:11]} 0-1